fUSD/lending_fUSD_20250622
["ID","MTS","AMOUNT","RATE_DAILY","PERIOD"]
[367035614,1750624256675,-490.0,0.00035616,15]
[367035615,1750624256688,-490.0,0.00035616,15]
[367035616,1750624256698,-490.0,0.00035616,15]
[367035617,1750624256707,-490.0,0.00035616,15]
[367035618,1750624256718,-580.35,0.00035616,15]
[367035619,1750624256727,-2188.02,0.00035616,15]
[367035620,1750624256737,-490.0,0.00035616,15]
[367035621,1750624256746,-1793.99,0.00035616,15]
[367035622,1750624256756,-875.64,0.00035616,15]
[367035623,1750624256765,-490.0,0.00035616,15]
[367035624,1750624256774,-500.59,0.00035616,15]
[367035625,1750624256783,-2145.05,0.00035616,15]
[367035626,1750624256792,-1942.41,0.00035616,15]
[367035627,1750624256801,-490.0,0.00035616,15]
[367035628,1750624256811,-535.89,0.00035616,15]
[367035629,1750624256820,-490.0,0.00035616,15]
[367035630,1750624256829,-490.0,0.00035616,2]
[367035631,1750624256838,-1766.17,0.00035616,15]
[367035632,1750624256848,-490.0,0.00035616,15]
[367035633,1750624256857,-490.0,0.00035616,15]
[367035634,1750624256867,-1337.93,0.00035616,15]
[367035635,1750624256877,-16979.44,0.00035616,15]
[367035636,1750624256886,-10034.09,0.00035616,15]
[367035637,1750624256895,-602.12,0.00035616,15]
[367035638,1750624256904,-1487.64,0.00035616,15]
[367035639,1750624256914,-490.0,0.00035616,2]
[367035640,1750624256923,-490.0,0.00035616,15]
[367035641,1750624256934,-2330.04,0.00035616,15]
[367035642,1750624256943,-490.0,0.00035616,15]
[367035643,1750624256952,-696.76,0.00035616,15]
[367035644,1750624256962,-490.0,0.00035616,15]
[367035645,1750624256973,-657.12,0.00035616,15]
[367035646,1750624256984,-937.5,0.00035616,15]
[367035647,1750624256994,-657.81,0.00035616,15]
[367035648,1750624257003,-2069.8,0.00035616,15]
[367035649,1750624257013,-283.15349097,0.00035616,15]
[367035650,1750624257023,-990.85,0.00035616,15]
[367035651,1750624257032,-490.0,0.00035616,15]
[367035652,1750624257042,-490.0,0.00035616,15]
[367035653,1750624257051,-1823.22,0.00035616,15]
[367035654,1750624257061,-550.96,0.00035616,15]
[367035655,1750624257158,-865.12,0.00035616,15]
[367035656,1750624257168,-358.53292609,0.00035624,33]
[367035657,1750624257177,-500.0,0.00035673,5]
[367035658,1750624257192,-500.0,0.00035673,5]
[367035659,1750624257202,-1200.0,0.000357,13]
[367035660,1750624257211,-4566.66519098,0.00035757,2]
[367035661,1750624257220,-1500.0,0.000358,13]
[367035662,1750624257230,-162.74063056,0.00035829,15]
[367035663,1750624257239,-150.5,0.0003586,120]
[367035664,1750624257249,-150.5,0.0003587,120]
[367035665,1750624257259,-500.0,0.00035873,5]
[367035666,1750624257269,-500.0,0.00035873,5]
[367035667,1750624257279,-500.0,0.00035873,5]
[367035668,1750624257289,-500.0,0.00035873,5]
[367035669,1750624257298,-500.0,0.00035873,5]
[367035670,1750624257307,-500.0,0.00035873,5]
[367035671,1750624257316,-500.0,0.00035873,5]
[367035672,1750624257325,-500.0,0.00035873,5]
[367035673,1750624257335,-304.33191136,0.00035873,5]
[367035674,1750624257344,-150.5,0.0003588,120]
[367035675,1750624257354,-151.0,0.0003588,7]
[367035676,1750624257363,-151.0,0.0003588,7]
[367035677,1750624257372,-151.0,0.0003588,7]
[367035678,1750624257381,-151.004872,0.0003588,7]
[367035679,1750624257390,-151.0,0.0003588,7]
[367035680,1750624257399,-151.0,0.0003588,7]
[367035681,1750624257408,-151.633051,0.0003588,7]
[367035682,1750624257417,-151.0,0.0003588,7]
[367035683,1750624257427,-151.0,0.0003588,7]
[367035684,1750624257438,-213.90171,0.0003588,7]
[367035685,1750624257448,-490.0,0.00035889,15]
[367035686,1750624257457,-570.24867305,0.00035889,15]
[367035687,1750624257466,-490.0,0.00035889,15]
[367035688,1750624257475,-490.0,0.00035889,15]
[367035689,1750624257485,-500.0,0.0003589,15]
[367035690,1750624257494,-509.18422265,0.0003589,15]
[367035691,1750624257505,-490.0,0.0003589,15]
[367035692,1750624257514,-606.15,0.0003589,15]
[367035693,1750624257524,-494.8286241,0.0003589,15]
[367035694,1750624257533,-322.25853183,0.0003589,5]
[367035695,1750624257542,-490.0,0.0003589,15]
[367035696,1750624257551,-617.17530835,0.0003589,15]
[367035697,1750624257560,-365.93814469,0.0003589,15]
[367035698,1750624257570,-490.0,0.0003589,3]
[367035699,1750624257579,-151.0,0.0003589,7]
[367035700,1750624257588,-151.0,0.0003589,7]
[367035701,1750624257597,-151.0,0.0003589,7]
[367035702,1750624257607,-151.0,0.0003589,7]
[367035703,1750624257616,-151.0,0.0003589,7]
[367035704,1750624257625,-151.0,0.0003589,7]
[367035705,1750624257635,-227.25754007,0.0003589,15]
[367035706,1750624257644,-151.0,0.0003589,7]
[367035707,1750624257653,-151.0,0.0003589,7]
[367035708,1750624257662,-151.0,0.0003589,7]
[367035709,1750624257671,-151.0,0.0003589,7]
[367035710,1750624257683,-165.441211,0.0003589,7]
[367035711,1750624257692,-151.0,0.0003589,7]
[367035712,1750624257701,-151.0,0.0003589,7]
[367035713,1750624257711,-155.903113,0.0003589,7]
[367035714,1750624257720,-290.39327042,0.0003589,2]
[367035715,1750624257743,-123.57222758,0.0003589,2]
[367035716,1750624257752,-413.965498,0.0003589,2]
[367035717,1750624257762,-413.965498,0.0003589,2]
[367035718,1750624257771,-413.965498,0.0003589,2]
[367035719,1750624257781,-413.965498,0.0003589,2]
[367035720,1750624257790,-413.965498,0.0003589,2]
[367035721,1750624257799,-490.0,0.0003589,15]
[367035722,1750624257808,-490.0,0.0003589,15]
[367035723,1750624257817,-490.0,0.0003589,15]
[367035724,1750624257827,-1156.7,0.0003589,15]
[367035725,1750624257836,-377.78302886,0.0003589,15]
[367035726,1750624257845,-2892.193911,0.0003589,15]
[367035727,1750624257854,-490.0,0.0003589,15]
[367035728,1750624257863,-490.0,0.0003589,15]
[367035729,1750624257872,-490.0,0.0003589,15]
[367035730,1750624257882,-501.95620511,0.0003589,15]
[367035731,1750624257891,-598.77924283,0.0003589,15]
[367035732,1750624257900,-490.0,0.0003589,15]
[367035733,1750624257910,-151.0,0.0003589,7]
[367035734,1750624257919,-151.0,0.0003589,7]
[367035735,1750624257928,-151.0,0.0003589,7]
[367035736,1750624257938,-151.0,0.0003589,7]
[367035737,1750624257947,-151.0,0.0003589,7]
[367035738,1750624257956,-151.0,0.0003589,7]
[367035739,1750624257966,-1469.456205,0.0003589,15]
[367035740,1750624257975,-154.372381,0.0003589,7]
[367035741,1750624257985,-315.4623966,0.0003589,15]
[367035742,1750624257994,-490.0,0.0003589,15]
[367035743,1750624258003,-490.0,0.0003589,15]
[367035744,1750624258012,-490.0,0.0003589,15]
[367035745,1750624258022,-1073.22,0.0003589,15]
[367035746,1750624258031,-490.0,0.0003589,15]
[367035747,1750624258040,-490.0,0.0003589,15]
[367035748,1750624258049,-490.0,0.0003589,15]
[367035749,1750624258059,-490.0,0.0003589,15]
[367035750,1750624258068,-490.0,0.0003589,15]
[367035751,1750624258077,-3159.73941423,0.0003589,15]
[367035752,1750624258091,-1457.50810582,0.0003589,15]
[367035757,1750624408467,155.72,0.00013699,2]
[367035770,1750625079351,250.0,0.00015,2]
[367035797,1750625432058,-159.0,0.00024932,7]
[367035798,1750625432068,-159.0,0.00025,7]
[367035799,1750625432077,-159.0,0.0002589,7]
[367035800,1750625432088,-300.0,0.000264,120]
[367035801,1750625432097,-161.0,0.00027185,7]
[367035802,1750625432107,-762.0,0.00028206,3]
[367035803,1750625432116,-217.40776067,0.00028897,2]
[367035804,1750625432126,-159.0,0.00028997,14]
[367035805,1750625432138,-155.72,0.0002911,2]
[367035806,1750625432148,-203.0,0.00029931,2]
[367035807,1750625432157,-159.0,0.0003081,14]
[367035808,1750625432167,-159.0,0.00031068,14]
[367035809,1750625432177,-155.21,0.00031383,2]
[367035810,1750625432186,-168.0,0.00031383,2]
[367035811,1750625432195,-203.0,0.00031435,4]
[367035812,1750625432204,-152.0,0.00032081,3]
[367035813,1750625432214,-217.40776066,0.00032146,2]
[367035814,1750625432223,-300.0,0.00032506,120]
[367035815,1750625432234,-159.0,0.00032622,14]
[367035816,1750625432243,-150.0,0.00032893,2]
[367035817,1750625432253,-203.0,0.00032938,7]
[367035818,1750625432263,-2439.45486169,0.00033,2]
[367035819,1750625432272,-666.0,0.00033052,2]
[367035820,1750625432283,-305.0,0.00033098,3]
[367035821,1750625432292,-1200.0,0.00033098,3]
[367035822,1750625432302,-204.0,0.00033099,3]
[367035823,1750625432311,-2000.0,0.000331,4]
[367035824,1750625432321,-2000.0,0.000331,4]
[367035825,1750625432331,-16939.14517086,0.00033123,2]
[367035826,1750625432343,-4407.15925479,0.00033123,2]
[367035827,1750625432355,-354.94690412,0.00033123,2]
[367035828,1750625432367,-1537.7659135,0.00033123,2]
[367035829,1750625432415,-660.98275673,0.00033123,2]
[367035830,1750625432425,-265.86,0.00033136,2]
[367035831,1750625432435,-500.0,0.00033155,2]
[367035832,1750625432445,-168.0,0.0003317,2]
[367035833,1750625432454,-250.0,0.0003319,2]
[367035834,1750625432464,-1000.0,0.00033227,2]
[367035835,1750625432473,-2000.0,0.00033262,120]
[367035838,1750625432484,-600.0,0.00033262,2]
[367035840,1750625432494,-209.59,0.00033328,120]
[367035842,1750625432503,-194.09,0.0003341,2]
[367035843,1750625432513,-154.55,0.000335,31]
[367035845,1750625432523,-154.55,0.000335,31]
[367035847,1750625432533,-300.0,0.00033509,120]
[367035848,1750625432544,-150.0,0.00033772,2]
[367035849,1750625432555,-161.34,0.00033838,37]
[367035850,1750625432564,-675.55455996,0.000339,29]
[367035851,1750625432573,-644.41,0.00033969,30]
[367035853,1750625432583,-1000.0,0.00034046,2]
[367035855,1750625432593,-240.86,0.00034047,2]
[367035857,1750625432602,-200.0,0.00034075,2]
[367035859,1750625432612,-167.68,0.00034103,2]
[367035861,1750625432622,-152.0,0.0003414,4]
[367035863,1750625432632,-675.55455969,0.00034141,30]
[367035865,1750625432643,-675.55455969,0.00034383,30]
[367035867,1750625432652,-203.0,0.00034442,10]
[367035869,1750625432661,-675.55455969,0.00034624,31]
[367035871,1750625432671,-150.0,0.00034651,2]
[367035873,1750625432681,-675.55455969,0.00034866,31]
[367035875,1750625432690,-167.32,0.00035068,2]
[367035877,1750625432699,-834.42866044,0.00035098,2]
[367035879,1750625432710,-675.55455969,0.00035107,32]
[367035881,1750625432719,-168.0,0.0003512,2]
[367035883,1750625432728,-150.0,0.00035218,2]
[367035884,1750625432737,-739.97351889,0.00035241,2]
[367035885,1750625432746,-300.0,0.00035289,120]
[367035886,1750625432756,-553.229259,0.00035344,16]
[367035887,1750625432765,-675.55455969,0.00035348,32]
[367035888,1750625432775,-217.40776066,0.00035395,2]
[367035889,1750625432784,-154.55,0.000354,31]
[367035890,1750625432793,-154.55,0.000354,31]
[367035891,1750625432802,-154.55,0.000354,31]
[367035892,1750625432811,-154.55,0.000354,31]
[367035893,1750625432820,-500.0,0.000354,12]
[367035894,1750625432829,-168.0,0.00035486,2]
[367035895,1750625432838,-151.0,0.00035495,2]
[367035896,1750625432847,-151.0,0.00035495,2]
[367035897,1750625432856,-151.0,0.00035495,2]
[367035898,1750625432865,-151.0,0.00035495,2]
[367035899,1750625432875,-151.0,0.00035495,2]
[367035900,1750625432885,-151.0,0.00035495,2]
[367035901,1750625432895,-151.0,0.00035495,2]
[367035902,1750625432904,-1100.0,0.000355,12]
[367035903,1750625432913,-2163.32572158,0.00035506,2]
[367035904,1750625432922,-1125.74045824,0.00035506,2]
[367035905,1750625432959,-1565.67122521,0.00035506,2]
[367035906,1750625432971,-453.08996235,0.00035506,2]
[367035907,1750625432980,-942.41676759,0.00035515,2]
[367035908,1750625432989,-159.04894482,0.00035515,15]
[367035909,1750625432998,-23522.94602822,0.00035516,2]
[367035910,1750625433009,-3615.9340373,0.00035516,2]
[367035911,1750625433038,-7864.33473448,0.00035516,2]
[367035912,1750625433048,-5000.0,0.00035516,2]
[367035913,1750625433058,-226.57634674,0.00035516,2]
[367035914,1750625433068,-298.30848367,0.00035516,8]
[367035915,1750625433077,-243.04660989,0.00035516,9]
[367035916,1750625433091,-881.90731052,0.00035516,9]
[367035917,1750625433103,-451.16300217,0.00035516,9]
[367035918,1750625433263,-484.34832181,0.00035516,9]
[367035921,1750625437970,-162.82764744,0.00035516,9]
[367035922,1750625437979,-150.0,0.00035529,2]
[367035923,1750625437988,-675.55455969,0.0003559,33]
[367035924,1750625437998,-49707.65051702,0.00035596,2]
[367035925,1750625438111,-1444.01453435,0.00035596,2]
[367036157,1750625440118,-19914.05510001,0.00035596,2]
[367036175,1750625440286,-9952.6,0.00035596,2]
[367036193,1750625440451,-357.87234682,0.000334,2]
[367036195,1750625440460,-8770.26291141,0.00035596,2]
[367036250,1750625443010,-281.28,0.00033626,2]
[367036251,1750625443020,-151.0,0.00033626,2]
[367036252,1750625443029,-193.61,0.00033626,2]
[367036253,1750625443039,-165.63,0.00033626,2]
[367036254,1750625443048,-24113.07961569,0.00035596,2]
[367036255,1750625443172,-695.30999998,0.00035596,2]
[367036272,1750625446191,-5519.99865847,0.00035506,2]
[367036273,1750625446200,-956.06087792,0.00035596,2]
[367036274,1750625446247,-667.90216625,0.00035596,2]
[367036286,1750625808093,155.61,0.00013699,2]
[367036390,1750626632251,-250.0,0.00022611,2]
[367036391,1750626632260,-300.0,0.00022611,2]
[367036392,1750626632269,-108.75734465,0.00026931,2]
[367036393,1750626632284,-94.24265535,0.00026931,2]
[367036394,1750626632294,-203.0,0.00026931,2]
[367036395,1750626632303,-203.0,0.00028585,4]
[367036396,1750626632313,-606.0,0.00029287,3]
[367036397,1750626632323,-197.3201005,0.0003,2]
[367036398,1750626632333,-203.0,0.00030238,7]
[367036399,1750626632343,-155.61,0.00031311,2]
[367036400,1750626632353,-203.0,0.00031892,10]
[367036401,1750626632362,-150.0,0.00033176,2]
[367036402,1750626632372,-150.0,0.00033308,2]
[367036403,1750626632381,-150.0,0.0003337,2]
[367036404,1750626632391,-150.0,0.0003344,2]
[367036405,1750626632400,-154.6,0.000335,31]
[367036406,1750626632409,-203.0,0.00033545,13]
[367036407,1750626632419,-150.0,0.00033612,2]
[367036408,1750626632428,-150.0,0.00033811,2]
[367036409,1750626632438,-150.0,0.00033842,2]
[367036410,1750626632447,-150.0,0.00033852,2]
[367036411,1750626632456,-150.0,0.00033868,2]
[367036412,1750626632466,-150.0,0.00033985,2]
[367036413,1750626632476,-150.0,0.00033989,2]
[367036414,1750626632485,-150.0,0.0003407,2]
[367036415,1750626632495,-150.0,0.00034131,2]
[367036416,1750626632504,-150.0,0.00034271,2]
[367036417,1750626632514,-1200.0,0.00034271,3]
[367036418,1750626632523,-400.0,0.00034271,2]
[367036419,1750626632533,-150.0,0.00034293,2]
[367036420,1750626632542,-250.0,0.00034332,2]
[367036421,1750626632552,-150.0,0.0003435,2]
[367036422,1750626632561,-215.17,0.00034432,120]
[367036423,1750626632571,-194.09,0.00034477,2]
[367036424,1750626632580,-1000.0,0.00034482,2]
[367036426,1750626632590,-200.0,0.00034524,7]
[367036428,1750626632599,-563.85,0.00034607,30]
[367036430,1750626632609,-155.21,0.00034607,2]
[367036432,1750626632618,-150.0,0.00034704,2]
[367036434,1750626632627,-150.0,0.00034809,2]
[367036436,1750626632637,-561.23379825,0.000349,31]
[367036438,1750626632646,-683.74165562,0.00034932,2]
[367036440,1750626632655,-150.0,0.00035004,2]
[367036447,1750626632939,-150.0,0.00035007,2]
[367036448,1750626632950,-150.0,0.00035067,2]
[367036449,1750626632959,-561.23379804,0.00035107,32]
[367036450,1750626632969,-150.0,0.00035197,2]
[367036451,1750626632978,-203.0,0.00035198,16]
[367036452,1750626632988,-150.0,0.00035216,2]
[367036453,1750626632997,-561.23379804,0.00035314,32]
[367036454,1750626633007,-683.74165563,0.00035317,2]
[367036455,1750626633016,-150.0,0.00035335,2]
[367036456,1750626633026,-154.6,0.000354,31]
[367036457,1750626633035,-154.6,0.000354,31]
[367036458,1750626633044,-400.0,0.000354,12]
[367036459,1750626633054,-150.0,0.00035468,2]
[367036460,1750626633063,-4967.99879265,0.00035485,2]
[367036461,1750626633073,-205.62814994,0.0003549,2]
[367036462,1750626633082,-900.0,0.000355,12]
[367036463,1750626633091,-5000.0,0.00035506,2]
[367036464,1750626633101,-238.64678696,0.00035506,8]
[367036465,1750626633111,-243.91195602,0.00035516,2]
[367036466,1750626633121,-561.23379804,0.00035521,33]
[367036467,1750626633131,-500.0,0.00035573,5]
[367036468,1750626633140,-197.10135034,0.00035573,5]
[367036469,1750626633150,-500.0,0.00035573,5]
[367036470,1750626633160,-502.50026605,0.00035573,5]
[367036471,1750626633169,-500.0,0.00035573,5]
[367036472,1750626633179,-500.0,0.00035573,5]
[367036473,1750626633188,-500.0,0.00035573,5]
[367036474,1750626633198,-4967.99879256,0.00035579,2]
[367036475,1750626633208,-150.0,0.0003558,2]
[367036476,1750626633218,-1000.0,0.00035585,2]
[367036477,1750626633227,-1000.0,0.00035585,2]
[367036478,1750626633237,-269.53355931,0.00035585,2]
[367036479,1750626633246,-377.02,0.00035585,3]
[367036480,1750626633256,-279.76567732,0.00035585,19]
[367036481,1750626633265,-192675.89084323,0.00035585,19]
[367036482,1750626633275,-5739.42186341,0.00035586,2]
[367036483,1750626633287,-3603.29758592,0.00035586,2]
[367036484,1750626633309,-1040.71639017,0.00035586,2]
[367036485,1750626633359,-74447.05846119,0.00035586,2]
[367036486,1750626633371,-1315.8,0.00035586,2]
[367036487,1750626633382,-2164.30819884,0.00035586,2]
[367036488,1750626633435,-620.27422345,0.00035586,2]
[367036493,1750626638262,-150.0,0.00032784,2]
[367036494,1750626638271,-150.0,0.00032853,2]
[367036495,1750626638280,-150.0,0.00032874,2]
[367036496,1750626638290,-150.0,0.00033077,2]
[367036497,1750626638299,-114.69099975,0.00033157,2]
[367036498,1750626638322,-35.30900025,0.00033157,2]
[367036499,1750626638331,-150.0,0.00033366,2]
[367036500,1750626638341,-150.0,0.000334,2]
[367036501,1750626638350,-150.0,0.00033839,2]
[367036502,1750626638361,-150.0,0.00034235,2]
[367036503,1750626638371,-150.0,0.00034335,2]
[367036504,1750626638380,-150.0,0.00034353,2]
[367036505,1750626638390,-150.0,0.00034517,2]
[367036506,1750626638399,-62.31171815,0.0003461,2]
[367036706,1750626640541,-87.68828185,0.0003461,2]
[367036708,1750626640550,-150.0,0.00034877,2]
[367036710,1750626640559,-150.0,0.00034881,2]
[367036712,1750626640568,-150.0,0.00034968,2]
[367036714,1750626640578,-150.0,0.00035382,2]
[367036716,1750626640587,-49251.01545721,0.00035586,2]
[367036729,1750626640703,-999.30445186,0.00035586,2]
[367036789,1750626643385,-203.0,0.00026931,2]
[367036790,1750626643395,-105.30898388,0.00035586,2]
[367036850,1750626646252,-5409.09361584,0.00035586,2]
[367036851,1750626646310,-997.61,0.00035586,2]
[367036852,1750626646558,-9978.43018845,0.00035586,2]
[367036854,1750626646704,-1038.5739196,0.00035586,2]
[367036856,1750626646716,-2197.28027854,0.00035586,2]
[367036866,1750626793735,302.81789955,0.00020055,2]
[367036869,1750626802471,162.94,0.00013699,2]
[367036871,1750626881627,250.0,0.00015,2]
[367036874,1750626895942,150.0,0.000201,2]
[367036892,1750627508807,25903.4829719,0.0002,2]
[367036893,1750627508833,50000.0,0.0002,2]
[367036894,1750627508857,48821.61846166,0.0002,2]
[367036895,1750627516534,1178.38153834,0.0002,2]
[367036896,1750627516560,50000.0,0.0002,2]
[367036897,1750627516585,17521.23043014,0.0002,2]
[367036898,1750627522930,387.7477276,0.0001994,2]
[367036903,1750627549127,303.01638381,0.0002,2]
[367036904,1750627552529,10000.0,0.0002,2]
[367036906,1750627561583,1491.1984546,0.0002,2]
[367036907,1750627588432,4329.92801258,0.0002,2]
[367036924,1750627647199,484.0045823,0.0002,2]
[367036928,1750627666817,2500.0,0.0002,2]
[367036929,1750627673327,8300.0,0.0002,4]
[367036930,1750627677005,4682.87440897,0.0002,4]
[367036931,1750627677032,50000.0,0.0002,4]
[367036932,1750627677056,50000.0,0.0002,4]
[367036933,1750627677080,50000.0,0.0002,4]
[367036934,1750627677104,2565.29301846,0.0002,4]
[367036935,1750627678946,47434.70698154,0.00014,2]
[367036936,1750627678969,50000.0,0.00014,2]
[367036937,1750627678991,50000.0,0.00014,2]
[367036938,1750627679013,50000.0,0.00014,2]
[367036939,1750627679036,50000.0,0.00014,2]
[367036940,1750627679058,50000.0,0.00014,2]
[367036941,1750627679080,50000.0,0.00014,2]
[367036942,1750627679102,50000.0,0.00014,2]
[367036943,1750627679123,50000.0,0.00014,2]
[367036944,1750627679145,50000.0,0.00014,2]
[367036945,1750627679168,2565.29301846,0.00014,2]
[367036952,1750627715544,4967.08181092,0.0002,2]
[367036953,1750627718644,14147.74,0.000151,2]
[367036955,1750627721262,514.0,0.0001997,2]
[367036958,1750627725222,884.93341705,0.0002,2]
[367036982,1750627794172,161.97,0.00013699,2]
[367036989,1750627832451,-469.0,0.00028017,3]
[367036990,1750627832461,-488.70112046,0.000282,5]
[367036991,1750627832472,-685.0,0.000282,5]
[367036992,1750627832483,-1907.29887954,0.000282,5]
[367036993,1750627832493,-1200.0,0.00028399,2]
[367036994,1750627832504,-38218.13108406,0.000284,2]
[367036995,1750627832513,-406.08931556,0.000288,7]
[367036996,1750627832524,-538.92403472,0.000289,20]
[367036997,1750627832534,-4787.72030453,0.00029,2]
[367036998,1750627832544,-161.97,0.0002911,2]
[367036999,1750627832554,-538.92403468,0.00029314,20]
[367037000,1750627832564,-538.92403468,0.00029728,21]
[367037001,1750627832573,-1587.7,0.000299,2]
[367037002,1750627832584,-10000.0,0.000299,2]
[367037003,1750627832594,-173.0,0.0003,14]
[367037004,1750627832603,-538.92403468,0.00030141,22]
[367037005,1750627832613,-538.92403468,0.00030555,23]
[367037006,1750627832623,-1680.0,0.00030791,2]
[367037007,1750627832634,-168.0,0.00030954,2]
[367037008,1750627832644,-538.92403468,0.00030969,24]
[367037009,1750627832653,-250.0,0.00031239,2]
[367037010,1750627832664,-168.0,0.00031335,2]
[367037011,1750627832674,-538.92403468,0.00031383,24]
[367037012,1750627832688,-1060.0,0.00031507,120]
[367037013,1750627832698,-250.0,0.0003168,2]
[367037014,1750627832708,-538.92403468,0.00031797,25]
[367037015,1750627832717,-168.0,0.00031956,2]
[367037016,1750627832727,-398.0,0.0003201,2]
[367037017,1750627832737,-396.0,0.00032025,2]
[367037019,1750627832747,-152.0,0.00032081,3]
[367037021,1750627832757,-2315.2407135,0.00032178,2]
[367037023,1750627832766,-538.92403468,0.0003221,26]
[367037024,1750627832776,-396.0,0.00032212,7]
[367037025,1750627832786,-398.0,0.00032459,2]
[367037026,1750627832795,-155.21,0.00032459,2]
[367037027,1750627832805,-538.92403468,0.00032624,27]
[367037030,1750627832815,-300.0,0.00032703,3]
[367037033,1750627832824,-396.0,0.00032704,2]
[367037036,1750627832834,-203.0,0.00032852,2]
[367037039,1750627832844,-538.92403468,0.00033038,28]
[367037042,1750627832854,-396.0,0.0003309,7]
[367037044,1750627832864,-150.0,0.00033381,2]
[367037046,1750627832873,-2351.0,0.00033385,3]
[367037048,1750627832883,-2000.0,0.000334,2]
[367037050,1750627832893,-538.92403468,0.00033452,28]
[367037052,1750627832902,-348.86,0.00033492,120]
[367037054,1750627832915,-150.0,0.00033507,2]
[367037056,1750627832924,-150.0,0.00033524,2]
[367037058,1750627832934,-167.66,0.00033618,2]
[367037060,1750627832944,-1000.0,0.00033632,2]
[367037062,1750627832954,-247.98,0.00033648,2]
[367037064,1750627832963,-236.54,0.00033673,2]
[367037066,1750627832973,-150.0,0.00033722,2]
[367037068,1750627832983,-250.0,0.00033729,2]
[367037069,1750627832993,-156.031,0.00033805,36]
[367037070,1750627833002,-23900.0,0.00033809,2]
[367037071,1750627833012,-538.92403468,0.00033866,29]
[367037072,1750627833022,-259.89,0.00033891,4]
[367037073,1750627833032,-666.0,0.00033892,2]
[367037074,1750627833042,-412.10241744,0.00033897,2]
[367037075,1750627833053,-2374.93012132,0.00034012,2]
[367037076,1750627833063,-150.0,0.0003409,2]
[367037077,1750627833073,-246.57,0.000341,2]
[367037078,1750627833083,-150.0,0.00034114,2]
[367037079,1750627833093,-152.0,0.0003414,4]
[367037080,1750627833103,-1000.0,0.00034167,2]
[367037081,1750627833114,-150.0,0.00034172,2]
[367037082,1750627833124,-398.0,0.00034228,2]
[367037083,1750627833134,-396.0,0.00034274,2]
[367037084,1750627833144,-538.92403468,0.00034279,30]
[367037085,1750627833154,-784.57,0.00034286,2]
[367037086,1750627833167,-300.0,0.00034292,120]
[367037087,1750627833178,-203.0,0.00034449,5]
[367037088,1750627833188,-150.0,0.00034601,2]
[367037089,1750627833198,-9730.27,0.00034603,2]
[367037090,1750627833209,-1500.0,0.00034619,2]
[367037091,1750627833219,-150.0,0.00034623,2]
[367037092,1750627833233,-493.36,0.00034632,30]
[367037093,1750627833243,-150.0,0.00034633,2]
[367037094,1750627833254,-167.04,0.00034657,2]
[367037095,1750627833265,-538.92403468,0.00034693,31]
[367037096,1750627833275,-150.0,0.00034785,2]
[367037097,1750627833286,-150.0,0.00034796,2]
[367037098,1750627833296,-150.0,0.000348,2]
[367037099,1750627833306,-679.788255,0.00034813,16]
[367037100,1750627833317,-170.2,0.00034834,2]
[367037101,1750627833330,-150.0,0.00034855,2]
[367037102,1750627833340,-150.0,0.00034861,2]